Workbook

Sheet Cover Page
B5: Risk Evaluation for 1,1-Dichloroethane -
B7: Supplemental Information File:
B9: Repackaging Environmental Release Modeling Results
B11: CASRN: 75-34-3

Sheet ReadMe
B2: Instructions for Using this Spreadsheet
B4: Table of Contents
B5: Worksheet | C5: Description
B6: Instructions (this worksheet) | C6: Provides instructions to the user on the use of this spreadsheet
B7: Release Point Summary | C7: Summarizes the Release Points and associated parameters used to calculate the amount of annual release from each Release Point
B8: Release Parameters | C8: A list of parameters for the release calculations. Allows an advanced user to select between performing a deterministic or Monte Carlo simulation. Monte Carlo formulas on this worksheet are based on the Monte Carlo simulator @Risk. Certain cells will appear with the "#NAME?" error indicator if a user does not have the program @Risk. The user must not alter parameters in this worksheet. Turn Monte Carlo "Off" using the toggle at the top of the sheet to view deterministic calculations (@Risk not needed for this).
B9: Release Calcs | C9: Performs the release calculations. This worksheet contains @Risk formulas to capture results during a Monte Carlo simulation iteration. Certain cells will appear with the "#NAME?" error indicator if a user does not have the program @Risk. The user must not alter this worksheet.
B10: Release Results | C10: Provides the release results for the baseline scenario from the Monte Carlo simulation. The user must not alter this worksheet.
B11: Scenario 1_Static | C11: Scenario 1: Fixed number of sites, PV=5,000 lbs Provides static release results from running the simulation with the specified parameters for the given scenario. @Risk not needed to view.
B12: Scenario 2_Static | C12: Scenario 2: Fixed number of sites, PV=50,000 lbs Provides static release results from running the simulation with the specified parameters for the given scenario. @Risk not needed to view.
B15: General Notes/Assumptions
B16: Assume 1,1-Dichloroethane (1,1-DCA) imported in pure form, which would be liquid form.
B17: Applied ESD on Transport and Storage of Chemicals to address importing pure 1,1-Dichloroethane in containers.
B18: Potential for 1,1-Dichloroethane to be imported and stored in drums, which would only constitute repackaging into smaller containers; conservative estimate that 1,1-Dichloroethane imported in larger quantity and transferred to drums first.
B19: Assume one imported container unloaded per day for repackaging, so number of containers unloaded per year is equal to number of release days per year. Note that the annual production volume per site that is selected for the simulation should not exceed 35,000 kg/site-yr, or the number of release days will begin to approach 365 days/year.

Sheet Release Summary
A1: Release Summary - 50th and 95th Percentile estimates
A2: ="Scenario 2: PV = " & 'Scenario 2_Static'!B2 & " kg/yr" -> Scenario 2: PV = 22680 kg/yr
A4: 50th Percentile
A5: Release Source | B5: Media of Release | C5: Daily Release (kg/site-day) | D5: Days per Year | E5: Annual Release (kg/site-yr) | F5: Release Duration (hr/day) | G5: Release Pattern | H5: Daily Release Estimate by Media (kg/site-day) | N5: Annual Release Estimate by Media (kg/site-yr)
H6: Water (Direct) | I6: Water (Indirect) | J6: Hazardous Waste Incineration | K6: Hazardous Waste Landfill | L6: Stack Air | M6: Fugitive Air | N6: Water (Direct) | O6: Water (Indirect) | P6: Hazardous Waste Incineration | Q6: Hazardous Waste Landfill | R6: Stack Air | S6: Fugitive Air
A7: 1. Emptying (drums) | B7: Fugitive or Stack Air | C7: =INDEX('Scenario 2_Static'!$B$43:$I$49,MATCH(A$4,'Scenario 2_Static'!$A$43:$A$49, 0), MATCH($A7, 'Scenario 2_Static'!$B$30:$F$30, 0)) -> 0.2033954072 | D7: ='Scenario 2_Static'!$F$12 -> 26 | E7: =INDEX('Scenario 2_Static'!$B$34:$I$40,MATCH(A$4,'Scenario 2_Static'!$A$43:$A$49, 0), MATCH($A7, 'Scenario 2_Static'!$B$30:$F$30, 0)) -> 9.234584002 | F7: mean: 2.4 range: 1.3 to 6.4 | G7: unknown - see operating days | L7: =C7 -> 0.2033954072 | M7: =C7 -> 0.2033954072 | R7: =E7 -> 9.234584002 | S7: =E7 -> 9.234584002
A8: 2. Storage | B8: N/A | C8: n/a | E8: =INDEX('Scenario 2_Static'!$B$34:$I$40,MATCH(A$4,'Scenario 2_Static'!$A$43:$A$49, 0), MATCH($A8, 'Scenario 2_Static'!$B$30:$F$30, 0)) -> - | F8: N/A | G8: unknown - see operating days
A9: 3. Filling (small containers) | B9: Fugitive or Stack Air | C9: =INDEX('Scenario 2_Static'!$B$43:$I$49,MATCH(A$4,'Scenario 2_Static'!$A$43:$A$49, 0), MATCH($A9, 'Scenario 2_Static'!$B$30:$F$30, 0)) -> 0.03371818721 | E9: =INDEX('Scenario 2_Static'!$B$34:$I$40,MATCH(A$4,'Scenario 2_Static'!$A$43:$A$49, 0), MATCH($A9, 'Scenario 2_Static'!$B$30:$F$30, 0)) -> 1.555378022 | F9: mean: 4.8 range: 2.1 to 8.5 | G9: unknown - see operating days | L9: =C9 -> 0.03371818721 | M9: =C9 -> 0.03371818721 | R9: =E9 -> 1.555378022 | S9: =E9 -> 1.555378022
A10: 4. Open Surface Losses to Air During Container Cleaning | B10: Fugitive or Stack Air | C10: =INDEX('Scenario 2_Static'!$B$43:$I$49,MATCH(A$4,'Scenario 2_Static'!$A$43:$A$49, 0), MATCH($A10, 'Scenario 2_Static'!$B$30:$F$30, 0)) -> 0.002605209847 | E10: =INDEX('Scenario 2_Static'!$B$34:$I$40,MATCH(A$4,'Scenario 2_Static'!$A$43:$A$49, 0), MATCH($A10, 'Scenario 2_Static'!$B$30:$F$30, 0)) -> 0.1183821384 | F10: mean: 2.4 range: 1.3 to 6.4 | G10: unknown - see operating days | L10: =C10 -> 0.002605209847 | M10: =C10 -> 0.002605209847 | R10: =E10 -> 0.1183821384 | S10: =E10 -> 0.1183821384
A11: 5. Container Cleaning (drums) | B11: Hazardous Waste Landfill or Hazardous Waste Incineration* | C11: =INDEX('Scenario 2_Static'!$B$43:$I$49,MATCH(A$4,'Scenario 2_Static'!$A$43:$A$49, 0), MATCH($A11, 'Scenario 2_Static'!$B$30:$F$30, 0)) -> 5.9958922 | E11: =INDEX('Scenario 2_Static'!$B$34:$I$40,MATCH(A$4,'Scenario 2_Static'!$A$43:$A$49, 0), MATCH($A11, 'Scenario 2_Static'!$B$30:$F$30, 0)) -> 274.5493104 | F11: N/A | G11: unknown - see operating days | J11: =C11 -> 5.9958922 | K11: =C11 -> 5.9958922 | P11: =E11 -> 274.5493104 | Q11: =E11 -> 274.5493104
A12: * Note that incineration release estimates represent the amount of chemical sent for incineration and do not account for destruction efficiency. Water releases are not expected as 1,1-Dichloroethane is classified as hazardous by RCRA; according to the GS hazardous wastes are likely sent to hazardous landfill or incineration - water releases are not expected. | G12: Total Releases by Media: | H12: =IF(SUM(H7:H11)>0, SUM(H7:H11), "") ->  | I12: =IF(SUM(I7:I11)>0, SUM(I7:I11), "") ->  | J12: 5.9958922 | K12: 5.9958922 | L12: 0.2397188043 | M12: 0.2397188043 | N12: =IF(SUM(N7:N11)>0, SUM(N7:N11), "") ->  | O12: =IF(SUM(O7:O11)>0, SUM(O7:O11), "") ->  | P12: =IF(SUM(P7:P11)>0, SUM(P7:P11), "") -> 274.5493104 | Q12: =IF(SUM(Q7:Q11)>0, SUM(Q7:Q11), "") -> 274.5493104 | R12: =IF(SUM(R7:R11)>0, SUM(R7:R11), "") -> 10.90834416 | S12: =IF(SUM(S7:S11)>0, SUM(S7:S11), "") -> 10.90834416
A15: 95th Percentile
A16: Release Source | B16: Media of Release | C16: Daily Release (kg/site-day) | D16: Days per Year | E16: Annual Release (kg/site-yr) | F16: Release Duration (hr/day) | G16: Release Pattern | H16: Daily Release Estimate by Media (kg/site-day) | N16: Annual Release Estimate by Media (kg/site-yr)
H17: Water (Direct) | I17: Water (Indirect) | J17: Hazardous Waste Incineration | K17: Hazardous Waste Landfill | L17: Stack Air | M17: Fugitive Air | N17: Water (Direct) | O17: Water (Indirect) | P17: Hazardous Waste Incineration | Q17: Hazardous Waste Landfill | R17: Stack Air | S17: Fugitive Air
A18: 1. Emptying (drums) | B18: Fugitive or Stack Air | C18: =INDEX('Scenario 2_Static'!$B$43:$I$49,MATCH(A$15,'Scenario 2_Static'!$A$43:$A$49, 0), MATCH($A18, 'Scenario 2_Static'!$B$30:$F$30, 0)) -> 0.3846187024 | D18: ='Scenario 2_Static'!F11 -> 129 | E18: =INDEX('Scenario 2_Static'!$B$34:$I$40,MATCH(A$15,'Scenario 2_Static'!$A$43:$A$49, 0), MATCH($A18, 'Scenario 2_Static'!$B$30:$F$30, 0)) -> 14.68118458 | F18: mean: 2.4 range: 1.3 to 6.4 | G18: unknown - see operating days | L18: =C18 -> 0.3846187024 | M18: =C18 -> 0.3846187024 | R18: =E18 -> 14.68118458 | S18: =E18 -> 14.68118458
A19: 2. Storage | B19: N/A | C19: n/a | E19: n/a | F19: N/A | G19: unknown - see operating days
A20: 3. Filling (small containers) | B20: Fugitive or Stack Air | C20: =INDEX('Scenario 2_Static'!$B$43:$I$49,MATCH(A$15,'Scenario 2_Static'!$A$43:$A$49, 0), MATCH($A20, 'Scenario 2_Static'!$B$30:$F$30, 0)) -> 0.07144353286 | E20: =INDEX('Scenario 2_Static'!$B$34:$I$40,MATCH(A$15,'Scenario 2_Static'!$A$43:$A$49, 0), MATCH($A20, 'Scenario 2_Static'!$B$30:$F$30, 0)) -> 3.876986533 | F20: mean: 4.8 range: 2.1 to 8.5 | G20: unknown - see operating days | L20: =C20 -> 0.07144353286 | M20: =C20 -> 0.07144353286 | R20: =E20 -> 3.876986533 | S20: =E20 -> 3.876986533
A21: 4. Open Surface Losses to Air During Container Cleaning | B21: Fugitive or Stack Air | C21: =INDEX('Scenario 2_Static'!$B$43:$I$49,MATCH(A$15,'Scenario 2_Static'!$A$43:$A$49, 0), MATCH($A21, 'Scenario 2_Static'!$B$30:$F$30, 0)) -> 0.004337535682 | E21: =INDEX('Scenario 2_Static'!$B$34:$I$40,MATCH(A$15,'Scenario 2_Static'!$A$43:$A$49, 0), MATCH($A21, 'Scenario 2_Static'!$B$30:$F$30, 0)) -> 0.2503365148 | F21: mean: 2.4 range: 1.3 to 6.4 | G21: unknown - see operating days | L21: =C21 -> 0.004337535682 | M21: =C21 -> 0.004337535682 | R21: =E21 -> 0.2503365148 | S21: =E21 -> 0.2503365148
A22: 5. Container Cleaning (drums) | B22: Hazardous Waste Landfill or Hazardous Waste Incineration* | C22: =INDEX('Scenario 2_Static'!$B$43:$I$49,MATCH(A$15,'Scenario 2_Static'!$A$43:$A$49, 0), MATCH($A22, 'Scenario 2_Static'!$B$30:$F$30, 0)) -> 9.358019914 | E22: =INDEX('Scenario 2_Static'!$B$34:$I$40,MATCH(A$15,'Scenario 2_Static'!$A$43:$A$49, 0), MATCH($A22, 'Scenario 2_Static'!$B$30:$F$30, 0)) -> 319.7502892 | F22: N/A | G22: unknown - see operating days | J22: =C22 -> 9.358019914 | K22: =C22 -> 9.358019914 | P22: =E22 -> 319.7502892 | Q22: =E22 -> 319.7502892
A23: 10 | G23: Total Releases by Media: | H23: =IF(SUM(H18:H22)>0, SUM(H18:H22), "") ->  | I23: =IF(SUM(I18:I22)>0, SUM(I18:I22), "") ->  | J23: =IF(SUM(J18:J22)>0, SUM(J18:J22), "") -> 9.358019914 | K23: =IF(SUM(K18:K22)>0, SUM(K18:K22), "") -> 9.358019914 | L23: =IF(SUM(L18:L22)>0, SUM(L18:L22), "") -> 0.460399771 | M23: =IF(SUM(M18:M22)>0, SUM(M18:M22), "") -> 0.460399771 | N23: =IF(SUM(N18:N22)>0, SUM(N18:N22), "") ->  | O23: =IF(SUM(O18:O22)>0, SUM(O18:O22), "") ->  | P23: =IF(SUM(P18:P22)>0, SUM(P18:P22), "") -> 319.7502892 | Q23: =IF(SUM(Q18:Q22)>0, SUM(Q18:Q22), "") -> 319.7502892 | R23: =IF(SUM(R18:R22)>0, SUM(R18:R22), "") -> 18.80850763 | S23: =IF(SUM(S18:S22)>0, SUM(S18:S22), "") -> 18.80850763

Sheet QC Sheet
A12: Scenario 1 (1,1-DCA)
A13: Annual Emissions | B13: Total Fugitive or stack air | C13: Total Release to Hazardous Landfill or Incineration | E13: 1. Emptying (drums) | F13: 2. Storage | G13: 3. Filling (small containers) | H13: 4. Open Surface Losses to Air During Container Cleaning | I13: 5. Container Cleaning (drums) | J13: Yearly Use Rate/Site (kg/site-yr)
E14: Fugitive or Stack Air | F14: Not expected to lead to significant losses to the environment | G14: Fugitive or Stack Air | H14: Fugitive or Stack Air | I14: Landfill or incineration
A15: Kilograms/site-yr | B15: ='Scenario 1_Static'!B11*2 -> 6.144635804 | C15: ='Scenario 1_Static'!C11*2 -> 67.99817441 | E15: ='Scenario 1_Static'!B34*2 -> 4.427067257 | G15: ='Scenario 1_Static'!D34*2 -> 2.690890858 | H15: ='Scenario 1_Static'!E34*2 -> 0.1243051157 | I15: ='Scenario 1_Static'!F34*2 -> 67.99817441 | J15: 2268
A16: Percent of Annual Use Rate | B16: =(B15/$J$15) -> 0.002709275046 | C16: =(C15/$J$15) -> 0.02998155838 | E16: 0.00195196969 | F16: 0 | G16: 0.001186459814 | H16: 5.480825207e-05 | I16: 0.02998155838
A17: Scenario 1 (TCEP)
A18: Annual Emissions | B18: Total Fugitive or stack air | C18: Total Release to Hazardous Landfill or Incineration | E18: 1. Emptying (drums) | F18: 2. Storage | G18: 3. Filling (small containers) | H18: 4. Open Surface Losses to Air During Container Cleaning | I18: 5. Container Cleaning (drums) | J18: Yearly Use Rate/Site (kg/site-yr)
B19: 0.002056897468 | C19: 33.99801945 | E19: Fugitive or Stack Air | F19: Not expected to lead to significant losses to the environment | G19: Fugitive or Stack Air | H19: Fugitive or Stack Air | I19: Wastewater to onsite treatment or discharge to POTW (with or without pretreatment)
A20: Kilograms/site-yr | B20: 0.002056897468 | C20: 33.99801945 | E20: 0.001447783069 | G20: 0.0009002516803 | H20: 3.330942957e-05 | I20: 33.99801945 | J20: 1134
A21: Percent of Annual Use Rate | B21: =(B20/$J$20) -> 1.813842565e-06 | C21: =(C20/$J$20) -> 0.0299806168 | E21: 1.276704646e-06 | F21: 0 | G21: 7.93872734e-07 | H21: 2.937339468e-08 | I21: 0.0299806168
A22: Scenario 2 (1,1-DCA)
A23: Annual Emissions | B23: Total Fugitive or stack air | C23: Total Release to Hazardous Landfill or Incineration | E23: 1. Emptying (drums) | F23: 2. Storage | G23: 3. Filling (small containers) | H23: 4. Open Surface Losses to Air During Container Cleaning | I23: 5. Container Cleaning (drums) | J23: Yearly Use Rate/Site (kg/site-yr)
E24: Fugitive or Stack Air | F24: Not expected to lead to significant losses to the environment | G24: Fugitive or Stack Air | H24: Fugitive or Stack Air | I24: Landfill or incineration
A25: Kilograms/site-yr | B25: ='Scenario 2_Static'!B11*2 -> 55.84023639 | C25: ='Scenario 2_Static'!C11*2 -> 680.0174119 | E25: ='Scenario 2_Static'!B34*2 -> 34.80033659 | G25: ='Scenario 2_Static'!D34*2 -> 24.66961814 | H25: ='Scenario 2_Static'!E34*2 -> 1.158376758 | I25: ='Scenario 2_Static'!F34*2 -> 680.0174119 | J25: 22680
A26: Percent of Annual Use Rate | B26: =(B25/$J$25) -> 0.002462091551 | C26: =(C25/$J$25) -> 0.02998313104 | E26: =(E25/$J$25) -> 0.001534406375 | F26: 0 | G26: 0.001087725667 | H26: 5.107481297e-05 | I26: 0.02998313104
A27: Scenario 2 (TCEP)
A28: Annual Emissions | B28: Total Fugitive or stack air | C28: Total Release to Hazardous Landfill or Incineration | E28: 1. Emptying (drums) | F28: 2. Storage | G28: 3. Filling (small containers) | H28: 4. Open Surface Losses to Air During Container Cleaning | I28: 5. Container Cleaning (drums) | J28: Yearly Use Rate/Site (kg/site-yr)
E29: Fugitive or Stack Air | F29: Not expected to lead to significant losses to the environment | G29: Fugitive or Stack Air | H29: Fugitive or Stack Air | I29: Wastewater to onsite treatment or discharge to POTW (with or without pretreatment)
A30: Kilograms/site-yr | B30: 0.01961913154 | C30: 340.0012186 | E30: 0.01149964018 | G30: 0.008555300191 | H30: 0.0003134569586 | I30: 340.0012186 | J30: 11340
A31: Percent of Annual Use Rate | B31: =(B30/$J$30) -> 1.730082147e-06 | C31: =(C30/$J$30) -> 0.02998247078 | E31: 1.014077618e-06 | F31: 0 | G31: 7.544356429e-07 | H31: 2.764170711e-08 | I31: 0.02998247078

Sheet Release Point Summary
A1: Parameter Definition | D1: Release Points (from ESD/GS) | Q1: General Parameters
A2: Possible Parameters | B2: Variable | D2: Release Point | E2: 1. Emptying (drums) | G2: 2. Storage | I2: 3. Filling (small containers) | K2: 4. Open Surface Losses to Air During Container Cleaning | M2: 5. Container Cleaning (drums) | Q2: Number of Sites | R2: Ns
A3: Saturation Factor Unloading | B3: Fsaturation_unloading | D3: Expected/Conservative Release Media | E3: fugitive air or stack air | G3: Not expected to lead to significant losses to the environment | I3: fugitive air or stack air | K3: fugitive air or stack air | M3: wastewater to onsite treatment or discharge to POTW (with or without pretreatment) | Q3: Production Volume | R3: PV
A4: 1,1-DCA Molecular Weight | B4: MW | D4: Input Parameters: | E4: Saturation Factor Unloading | F4: Fsaturation_unloading | G4: - | H4: - | I4: Saturation Factor Loading | J4: Fsaturation_loading | K4: 1,1-DCA Molecular Weight | L4: MW | M4: Container Loss Fraction | N4: Floss_cont
A5: Import Container Volume | B5: Vimport_cont | E5: 1,1-DCA Molecular Weight | F5: MW | I5: 1,1-DCA Molecular Weight | J5: MW | K5: 1,1-DCA Mass Fraction/VP Correction Factor | L5: F11DCA | M5: Production Volume | N5: PV
A6: Fill Rate of Drum | B6: RATEfill_drum | E6: Import Container Volume | F6: Vimport_cont | I6: Small Container Volume | J6: Vfill_cont | K6: 1,1-DCA Vapor Pressure | L6: VP
A7: 1,1-DCA Vapor Pressure | B7: VP | E7: Fill Rate of Drum | F7: RATEfill_drum | I7: Fill Rate of Small Container | J7: RATEfill_smallcont | K7: Air Speed | L7: RATEair_speed
A8: Gas Constant | B8: R | E8: 1,1-DCA Vapor Pressure | F8: VP | I8: 1,1-DCA Vapor Pressure | J8: VP | K8: Diameter of Opening for Container Cleaning | L8: Dopening_cont-cleaning
A9: Temperature | B9: T | E9: Gas Constant | F9: R | I9: Gas Constant | J9: R | K9: Temperature | L9: T
A10: Production Volume | B10: PV | E10: Temperature | F10: T | I10: Temperature | J10: T | K10: Pressure | L10: P
A11: 1,1-DCA Density | B11: r | E11: Production Volume | F11: PV | I11: Production Volume | J11: PV | K11: Fill Rate of Drum | L11: RATEfill_drum
A12: Saturation Factor Loading | B12: Fsaturation_loading | E12: 1,1-DCA Density | F12: r | I12: 1,1-DCA Density | J12: r | K12: Import Container Volume | L12: Vimport_cont
A13: Small Container Volume | B13: Vfill_cont | K13: Production Volume | L13: PV
A14: Fill Rate of Small Container | B14: RATEfill_smallcont | K14: 1,1-DCA Density | L14: r
A15: 1,1-DCA Mass Fraction/VP Correction Factor | B15: F11-DCA
A16: Air Speed | B16: RATEair_speed
A17: Diameter of Opening for Container Cleaning | B17: Dopening_cont-cleaning
A18: Pressure | B18: P
A19: Container Loss Fraction | B19: Floss_cont
A20: Number of Sites | B20: Ns

Sheet Release Parameters
B2: Turn Monte Carlo On or Off | C2: On
B4: Input Parameter | C4: Symbol | D4: Unit | E4: Deterministic Values | G4: Uncertainty Analysis Distribution Parameters | J4: Distribution Type | L4: Selected Value (Deterministic or @Risk Formula) | M4: Notes/Comments
E5: Value | F5: Basis | G5: Lower Bound | H5: Upper Bound | I5: Mode | K5: @Risk Formulas | P5: On/Off Drop Down
B6: Container Loss Fraction | C6: Floss_cont | D6: kg/kg | E6: 0.025 | F6: Typical | G6: 0.017 | H6: 0.03 | I6: 0.025 | J6: Triangular | K6: 0.025 | L6: =IF($C$2=$P$6, K6, E6) -> 0.025 | M6: Loss fractions for container residual are consistent with EPA/OPPT Drum residual Model using 0.03 loss fraction as high-end and 0.025 as central tendency. Minimum of 0.017 is per review of data used to develop drum model and preliminary EPA guidance on 5/25/2022. | P6: On
B7: Saturation Factor Unloading | C7: Fsaturation_unloading | D7: kg/kg | E7: 0.5 | F7: Typical | G7: 0.5 | H7: 1.45 | I7: 0.5 | J7: Triangular | K7: 0.5 | L7: 0.5 | M7: AP-42 provided values | P7: Off
B8: Saturation Factor Loading | C8: Fsaturation_loading | D8: kg/kg | E8: 0.5 | F8: Typical | G8: 0.5 | H8: 1.45 | I8: 0.5 | J8: Triangular | K8: 0.5 | L8: 0.5 | M8: AP-42 provided values
B9: Import Container Volume | C9: Vimport_cont | D9: gal/container | E9: 55 | F9: Typical | G9: 20 | H9: 100 | I9: 55 | J9: Triangular | K9: 55 | L9: =IF($C$2=$P$6, K9, E9) -> 55 | M9: Standard EPA values for Vapor Generation Rate/Volatile Air Release Models given as 20 to <100 gallons for drum volume, with 55 gallons as default value. Typically use drums for given throughput as suggested in ESD on Transport and Storage (HERO ID 6393282).
B10: Small Container Volume | C10: Vfill_cont | D10: gal/container | E10: 5 | F10: Typical | G10: 5 | H10: 20 | I10: 5 | J10: Triangular | K10: 5 | L10: 5 | M10: Standard EPA values for Vapor Generation Rate/Volatile Air Release Models given as 5 to <20 gallons for small container volume, with 5 gallons as default value.
B11: Air Speed | C11: RATEair_speed | D11: cm/s | E11: 10 | F11: 50th percentile | G11: 1.3 | H11: 202.2 | I11: — | J11: Lognormal | K11: 10 | L11: =IF($C$2=$P$6, K11, E11) -> 10 | M11: Distribution using EPA's air speed model for industrial uses; converted to ft/min for model use. For industrial facilities, it’s a lognormal distribution with mean of 22.414 cm/s, standard deviation of 19.958 cm/s, max truncated at 202.2 cm/s.
D12: ft/min | E12: =E11*ft_per_cm*60 -> 19.6848 | F12: 50th percentile | G12: =G11*ft_per_cm*60 -> 2.559024 | H12: =H11*ft_per_cm*60 -> 398.026656 | I12: — | J12: Lognormal | K12: 19.6848 | L12: =IF($C$2=$P$6, K12, E12) -> 19.6848
B14: Constants and Unit Conversions | C14: Symbol | D14: Value | E14: Unit | F14: Notes/Comments
B15: Number of Sites | C15: Ns | D15: 2 | E15: sites | F15: what-if scenario
B16: Production Volume Assessed | C16: PV_lbs | D16: 50000 | E16: lbs/yr | F16: what-if scenario
B17: Production Volume | C17: PV | D17: =D16/lbs_per_kg -> 22679.64547 | E17: kg/yr | F17: used for calcs
B18: 1,1-DCA Import Mass Fraction | C18: F11DCA | D18: 1 | E18: kg/kg | F18: also use for vapor pressure correction factor
B19: 1,1-DCA Molecular Weight | C19: MW | D19: 98.95 | E19: g/mol
B20: Fill Rate of Drum | C20: RATEfill_drum | D20: 20 | E20: containers/hr
B21: Fill Rate of Small Container | C21: RATEfill_smallcont | D21: 60 | E21: containers/hr
B22: Diameter of Opening for Container Cleaning | C22: Dopening_cont-cleaning | D22: 5.08 | E22: cm
B23: 1,1-DCA Vapor Pressure | C23: VP | D23: 227 | E23: Torr | F23: Final Scope (mmHg)
B24: 1,1-DCA Density | C24: rho11DCA | D24: 1168 | E24: kg/m^3
B25: Gas Constant | C25: R | D25: 62.36367 | E25: L*torr/mol-K
B26: Temperature | C26: T | D26: 298 | E26: K
B27: Pressure | C27: P | D27: 760 | E27: torr
B28: lb/kg | C28: — | D28: 2.20462 | E28: lb/kg
B29: ft/cm | C29: — | D29: 0.032808 | E29: ft/cm
B30: m^3/gal | C30: — | D30: 0.00378541 | E30: m^3/gal
B31: L/gal | C31: — | D31: 3.7854 | E31: L/gal

Sheet Release Calcs
B2: Calculation of Baseline Releases
B4: Parameter Name | C4: Symbol | D4: Equation | E4: Stochastic Value | F4: Unit
B5: Facility Production Rate | C5: PVsite | D5: PV/Ns | E5: 11339.82274 | F5: kg/site-year
B6: Release Days per site/Number of Import Containers | C6: RD | D6: (PVsite/(rho11DCA*0.00378541 m3/gal*Vimport_cont) | E6: 47 | F6: days
B7: Facility Daily Production Rate | C7: Qchem_site_day | D7: PV/(Nsites * RD) | E7: 241.2728242 | F7: kg/site-day
B8: Facility Annual Production Rate | C8: Qchem_site_yr | D8: PV/(Nsites) | E8: 11339.82274 | F8: kg/site-day
B9: Mass of Chemical in Unloaded Container | C9: Qproc_container_unload | D9: Vimport_container * RHO12DCA * m^3_per_gal | E9: 243.1747384 | F9: kg chemical/unload container
B10: Mass of Chemical in Filled Container | C10: Qproc_container_fill | D10: Vsmall_container * RHO12DCA * m^3_per_gal | E10: 22.1067944 | F10: kg chemical/fill container
B11: Number of Transport Containers Unloaded Daily per Site | C11: Ncont_unload_day | D11: (Qchem_site_day * RD)/(Fchem * Qproc_cont_unload) | E11: 46.63240438 | F11: containers unloaded/day
B12: Number of Transport Containers Unloaded Annually per Site | C12: Ncont_unload_yr | D12: (Qchem_site_yr * RD)/(Fchem * Qproc_cont_unload) | E12: 2191.723006 | F12: containers unloaded/day
B13: Number of Transport Containers Unloaded Daily per Site | C13: Ncont_load_day | D13: (Qchem_site_day * RD)/(Fchem * Qproc_cont_fill) | E13: 512.9564482 | F13: containers loaded/day
B14: Number of Transport Containers Unloaded Annually per Site | C14: Ncont_load_yr | D14: (Qchem_site_yr * RD)/(Fchem * Qproc_cont_fill) | E14: 24108.95306 | F14: containers loaded/day
B15: Daily Hours Spent Unloading Containers | C15: OHunload_day | D15: Ncont_unload_day/RATEfill_drum | E15: 2.331620219 | F15: hours/day
B16: Daily Hours Spent Filling Containers | C16: OHload_day | D16: Ncont_fill_day/RATEfill_smallcont | E16: 8.549274136 | F16: hours/day
B17: Annual Hours Spent Unloading Containers | C17: OHunload_yr | D17: Ncont_unload_yr/RATEfill_drum | E17: 109.5861503 | F17: hours/yr
B18: Annual Hours Spent Filling Containers | C18: OHload_yr | D18: Ncont_fill_yr/RATEfill_smallcont | E18: 401.8158844 | F18: hours/yr
B19: Release Point 1 annual release per site (Emptying drums) | C19: Release_YearRP1 | D19: (RD/RATEfill_drum)*(3600 s/hr)*(0.001 kg/g)*[Fsaturation_unloading*MW11DCA*(Vimport_cont*(3.7854 L/gal))*(RATEfill_drum/(3600 s/hr))*F11DCA*(VP)]/(R*T) | E19: 5.913383653 | F19: kg/site-yr
B20: Release Point 3 annual release per site (Filling small containers) | C20: Release_YearRP3 | D20: (RD/RATEfill_smallcont)*(3600 s/hr)*(0.001 kg/g)*[Fsaturation_loading*MW11DCA*(Vfill_cont*(3.7854 L/gal))*(RATEfill_smallcont/(3600 s/hr))*F11DCA*(VP)]/(R*T) | E20: 0.5375803321 | F20: kg/site-yr
B21: Release Point 4 annual release per site (Open surface losses during container cleaning) | C21: Release_YearRP4 | D21: Penetration Model (if air speed <= 100 ft/min): (RD/RATEfill_drum*(3600 s/hr))*(0.001 kg/g)*[[(8.24E-8*(MW11DCA^0.835)*F11DCA*VP*((1/29+1/MW11DCA)^0.25)*(RATEair_speed^0.5)*(0.25*pi*Dopening_cont-cleaning^2)]/(T^0.05*Dopening_cont-cleaning^0.5*P^0.5)] Mass Transfer Coefficient Model (if air speed >100 ft/min): (RD/RATEfill_drum*(3600 s/hr))*(0.001 kg/g)*[[(1.93E-7*(MW11DCA^0.78)*F11DCA*VP*((1/29+1/MW11DCA)^0.33)*(RATEair_speed^0.78)*(0.25*pi*Dopening_cont-cleaning^2)]/(T^0.4*Dopening_cont-cleaning^0.11*(T^0.5-5.87)^(2/3)] | E21: 0.1011678189 | F21: kg/site-yr
B22: Release Point 5 annual release per site (Drum cleaning) | C22: Release_YearRP5 | D22: PVsite*Floss_cont | E22: 283.4955684 | F22: kg/site-yr
B23: Release Point 1 site release per release day (Emptying drums) | C23: Release_per DayRP1 | D23: Release_YearRP1/RD | E23: 0.1258166735 | F23: kg/site-day
B24: Release Point 3 site release per release day (Filling small containers) | C24: Release_per DayRP3 | D24: Release_YearRP3/RD | E24: 0.01143787941 | F24: kg/site-day
B25: Release Point 4 site release per release day (Open surface losses during container cleaning) | C25: Release_per DayRP4 | D25: Release_YearRP4/RD | E25: 0.002152506785 | F25: kg/site-day
B26: Release Point 5 site release per release day (Drum cleaning) | C26: Release_per DayRP5 | D26: Release_YearRP5/RD | E26: 6.031820604 | F26: kg/site-day
B27: Total Annual Release to fugitive or stack air | C27: Release_totalair | D27: Release_YearRP1 + Release_YearRP3 + Release_YearRP4 | E27: 6.552131804 | F27: kg/site-yr
B28: Total Annual Releaseto landfill or incineration | C28: Release_total land_inc | D28: Release_YearRP5 | E28: 283.4955684 | F28: kg/site-yr
B29: Total Daily Release to fugitive or stack air | C29: Release_airday | D29: Release_totalair/RD | E29: 0.1394070597 | F29: kg/site-day
B30: Total Daily Release to landfill or incineration | C30: Release_land_inc_day | D30: Release_totalwater/RD | E30: 6.031820604 | F30: kg/site-day

Sheet Release Results
A1: What-If Scenario
A2: Production Volume Assessed (kg/yr) | B2: 22680
A3: Number of Sites | B3: 2
A5: Monte Carlo Simulation Parameters
A6: Number of Iterations | B6: 100000
A7: Sampling Method | B7: Latin Hypercube
B9: Release Media
A10: Total Annual Release (kg/site-yr) | B10: fugitive air or stack air | C10: hazardous landfill or incineration | E10: Release Days (days/yr) | F10: RD
A11: Maximum | B11: 6.552131804 | C11: 283.4955684 | E11: Maximum | F11: 47
A12: 99th Percentile | B12: 6.552131804 | C12: 283.4955684 | E12: Minimum | F12: 47
A13: 95th Percentile | B13: 6.552131804 | C13: 283.4955684
A14: 50th Percentile | B14: 6.552131804 | C14: 283.4955684
A15: 5th Percentile | B15: 6.552131804 | C15: 283.4955684
A16: Minimum | B16: 6.552131804 | C16: 283.4955684
A17: Mean | B17: 6.552131804 | C17: 283.4955684
A19: Total Release per-Day (kg/site-day)
A20: Maximum | B20: 0.1394070597 | C20: 6.031820604
A21: 99th Percentile | B21: 0.1394070597 | C21: 6.031820604
A22: 95th Percentile | B22: 0.1394070597 | C22: 6.031820604
A23: 50th Percentile | B23: 0.1394070597 | C23: 6.031820604
A24: 5th Percentile | B24: 0.1394070597 | C24: 6.031820604
A25: Minimum | B25: 0.1394070597 | C25: 6.031820604
A26: Mean | B26: 0.1394070597 | C26: 6.031820604
B29: Release Point
A30: Release Point | B30: 1. Emptying (drums) | C30: 2. Storage | D30: 3. Filling (small containers) | E30: 4. Open Surface Losses to Air During Container Cleaning | F30: 5. Container Cleaning (drums)
A31: Expected/Conservative Release Media | B31: fugitive air or stack air | C31: Not expected to lead to significant losses to the environment | D31: fugitive air or stack air | E31: fugitive air or stack air | F31: landfill or incineration
A33: Release (kg/site-yr) | B33: Release_YearRP1 | C33: - | D33: Release_YearRP3 | E33: Release_YearRP4 | F33: Release_YearRP5
A34: Maximum | B34: 5.913383653 | C34: - | D34: 0.5375803321 | E34: 0.1011678189 | F34: 283.4955684
A35: 99th Percentile | B35: 5.913383653 | C35: - | D35: 0.5375803321 | E35: 0.1011678189 | F35: 283.4955684
A36: 95th Percentile | B36: 5.913383653 | C36: - | D36: 0.5375803321 | E36: 0.1011678189 | F36: 283.4955684
A37: 50th Percentile | B37: 5.913383653 | C37: - | D37: 0.5375803321 | E37: 0.1011678189 | F37: 283.4955684
A38: 5th Percentile | B38: 5.913383653 | C38: - | D38: 0.5375803321 | E38: 0.1011678189 | F38: 283.4955684
A39: Minimum | B39: 5.913383653 | C39: - | D39: 0.5375803321 | E39: 0.1011678189 | F39: 283.4955684
A40: Mean | B40: 5.913383653 | C40: - | D40: 0.5375803321 | E40: 0.1011678189 | F40: 283.4955684
A42: Release (kg/site-day) | B42: Release_per DayRP1 | C42: - | D42: Release_per DayRP3 | E42: Release_per DayRP4 | F42: Release_per DayRP5
A43: Maximum | B43: 0.1258166735 | C43: - | D43: 0.01143787941 | E43: 0.002152506785 | F43: 6.031820604
A44: 99th Percentile | B44: 0.1258166735 | C44: - | D44: 0.01143787941 | E44: 0.002152506785 | F44: 6.031820604
A45: 95th Percentile | B45: 0.1258166735 | C45: - | D45: 0.01143787941 | E45: 0.002152506785 | F45: 6.031820604
A46: 50th Percentile | B46: 0.1258166735 | C46: - | D46: 0.01143787941 | E46: 0.002152506785 | F46: 6.031820604
A47: 5th Percentile | B47: 0.1258166735 | C47: - | D47: 0.01143787941 | E47: 0.002152506785 | F47: 6.031820604
A48: Minimum | B48: 0.1258166735 | C48: - | D48: 0.01143787941 | E48: 0.002152506785 | F48: 6.031820604
A49: Mean | B49: 0.1258166735 | C49: - | D49: 0.01143787941 | E49: 0.002152506785 | F49: 6.031820604
A51: Daily Release Duration (hours/day) | B51: Release_Duration per Day_RP1 | C51: - | D51: Release_Duration per Day_RP3 | E51: Release_Duration per Day_RP4 | F51: Release_Duration per Day_RP5
A52: Maximum | B52: 2.331620219 | C52: - | D52: 8.549274136 | E52: 2.331620219 | F52: -
A53: 99th Percentile | B53: 2.331620219 | C53: - | D53: 8.549274136 | E53: 2.331620219 | F53: -
A54: 95th Percentile | B54: 2.331620219 | C54: - | D54: 8.549274136 | E54: 2.331620219 | F54: -
A55: 50th Percentile | B55: 2.331620219 | C55: - | D55: 8.549274136 | E55: 2.331620219 | F55: -
A56: 5th Percentile | B56: 2.331620219 | C56: - | D56: 8.549274136 | E56: 2.331620219 | F56: -
A57: Minimum | B57: 2.331620219 | C57: - | D57: 8.549274136 | E57: 2.331620219 | F57: -
A58: Mean | B58: 2.331620219 | C58: - | D58: 8.549274136 | E58: 2.331620219 | F58: -
A60: Annual Release Duration (hours/yr) | B60: Release_Duration per Year_RP1 | C60: - | D60: Release_Duration per Year_RP3 | E60: Release_Duration per Year_RP4 | F60: Release_Duration per Year_RP5
A61: Maximum | B61: 109.5861503 | C61: - | D61: 401.8158844 | E61: 109.5861503 | F61: -
A62: 99th Percentile | B62: 109.5861503 | C62: - | D62: 401.8158844 | E62: 109.5861503 | F62: -
A63: 95th Percentile | B63: 109.5861503 | C63: - | D63: 401.8158844 | E63: 109.5861503 | F63: -
A64: 50th Percentile | B64: 109.5861503 | C64: - | D64: 401.8158844 | E64: 109.5861503 | F64: -
A65: 5th Percentile | B65: 109.5861503 | C65: - | D65: 401.8158844 | E65: 109.5861503 | F65: -
A66: Minimum | B66: 109.5861503 | C66: - | D66: 401.8158844 | E66: 109.5861503 | F66: -
A67: Mean | B67: 109.5861503 | C67: - | D67: 401.8158844 | E67: 109.5861503 | F67: -

Sheet Scenario 1_Static_OH
A1: What-If Scenario
A2: Production Volume Assessed (kg/yr) | B2: 2268
A3: Number of Sites | B3: 2
A5: Monte Carlo Simulation Parameters
A6: Number of Iterations | B6: 100000
A7: Sampling Method | B7: Latin Hypercube
B9: Release Media
A10: Total Annual Release (kg/site-yr) | B10: fugitive air or stack air | C10: hazardous landfill or incineration | E10: Release Days (days/yr) | F10: RD
A11: Maximum | B11: 2.88121078 | C11: 34.00980825 | E11: Maximum | F11: 13
A12: 99th Percentile | B12: 2.223711977 | C12: 33.10505104 | E12: Minimum | F12: 3
A13: 95th Percentile | B13: 1.96454079 | C13: 31.97510014
A14: 50th Percentile | B14: 1.217452287 | C14: 27.45495672
A15: 5th Percentile | B15: 0.7995087275 | C15: 21.8634751
A16: Minimum | B16: 0.6404498814 | C16: 19.31131171
A17: Mean | B17: 1.279469882 | C17: 27.21557454
A19: Total Release per-Day (kg/site-day)
A20: Maximum | B20: 0.7298372766 | C20: 11.31149982
A21: 99th Percentile | B21: 0.5338674552 | C21: 10.09546368
A22: 95th Percentile | B22: 0.4410356171 | C22: 8.226166142
A23: 50th Percentile | B23: 0.2415449966 | C23: 5.44971429
A24: 5th Percentile | B24: 0.1305384118 | C24: 3.057298105
A25: Minimum | B25: 0.06525639229 | C25: 1.588913775
A26: Mean | B26: 0.258027099 | C26: 5.546322324
B29: Release Point
A30: Release Point | B30: 1. Emptying (drums) | C30: 2. Storage | D30: 3. Filling (small containers) | E30: 4. Open Surface Losses to Air During Container Cleaning | F30: 5. Container Cleaning (drums)
A31: Expected/Conservative Release Media | B31: fugitive air or stack air | C31: Not expected to lead to significant losses to the environment | D31: fugitive air or stack air | E31: fugitive air or stack air | F31: landfill or incineration
A33: Release (kg/site-yr) | B33: Release_YearRP1 | C33: - | D33: Release_YearRP3 | E33: Release_YearRP4 | F33: Release_YearRP5
A34: Maximum | B34: 2.230520584 | C34: - | D34: 1.317463476 | E34: 0.0618805856 | F34: 34.00980825
A35: 99th Percentile | B35: 1.834180661 | C35: - | D35: 0.5828573689 | E35: 0.03617768445 | F35: 33.10505104
A36: 95th Percentile | B36: 1.630604983 | C36: - | D36: 0.4151064732 | E36: 0.0269816391 | F36: 31.97510014
A37: 50th Percentile | B37: 1.014310989 | C37: - | D37: 0.1712615801 | E37: 0.0130311347 | F37: 27.45495672
A38: 5th Percentile | B38: 0.6721390667 | C38: - | D38: 0.0736051562 | E38: 0.006174920333 | F38: 21.8634751
A39: Minimum | B39: 0.5869535731 | C39: - | D39: 0.03535222049 | E39: 0.002332167143 | F39: 19.31131171
A40: Mean | B40: 1.066834371 | C40: - | D40: 0.1983259919 | E40: 0.01430951962 | F40: 27.21557454
A42: Release (kg/site-day) | B42: Release_per DayRP1 | C42: - | D42: Release_per DayRP3 | E42: Release_per DayRP4 | F42: Release_per DayRP5
A43: Maximum | B43: 0.6310499534 | C43: - | D43: 0.1239904046 | E43: 0.004851458595 | F43: 11.31149982
A44: 99th Percentile | B44: 0.4727690885 | C44: - | D44: 0.08950237599 | E44: 0.004726212501 | F44: 10.09546368
A45: 95th Percentile | B45: 0.3853320779 | C45: - | D45: 0.07116084265 | E45: 0.004337409716 | F45: 8.226166142
A46: 50th Percentile | B46: 0.2033677057 | C46: - | D46: 0.03374832572 | E46: 0.002605179631 | F46: 5.44971429
A47: 5th Percentile | B47: 0.1010251735 | C47: - | D47: 0.01632424999 | E47: 0.001377568055 | F47: 3.057298105
A48: Minimum | B48: 0.04860988885 | C48: - | D48: 0.01149077443 | E48: 0.0007773890477 | F48: 1.588913775
A49: Mean | B49: 0.217976402 | C49: - | D49: 0.03735623658 | E49: 0.002694460462 | F49: 5.546322324
A51: Daily Release Duration (hours/day) | B51: Release_Duration per Day_RP1 | C51: - | D51: Release_Duration per Day_RP3 | E51: Release_Duration per Day_RP4 | F51: Release_Duration per Day_RP5
A52: Maximum | B52: 0.6376126058 | C52: - | D52: 0.8549265083 | E52: 0.6376126058 | F52: -
A53: 99th Percentile | B53: 0.5070052166 | C53: - | D53: 0.8422593314 | E53: 0.5070052166 | F53: -
A54: 95th Percentile | B54: 0.4028490964 | C54: - | D54: 0.7945600468 | E54: 0.4028490964 | F54: -
A55: 50th Percentile | B55: 0.2227385912 | C55: - | D55: 0.4550681932 | E55: 0.2227385912 | F55: -
A56: 5th Percentile | B56: 0.1481096234 | C56: - | D56: 0.2567933378 | E56: 0.1481096234 | F56: -
A57: Minimum | B57: 0.1284744381 | C57: - | D57: 0.2142005371 | E57: 0.1284744381 | F57: -
A58: Mean | B58: 0.2405986701 | C58: - | D58: 0.483542654 | E58: 0.2405986701 | F58: -
A60: Annual Release Duration (hours/yr) | B60: Release_Duration per Year_RP1 | C60: - | D60: Release_Duration per Year_RP3 | E60: Release_Duration per Year_RP4 | F60: Release_Duration per Year_RP5
A61: Maximum | B61: 8.288963876 | C61: - | D61: 10.85579802 | E61: 8.288963876 | F61: -
A62: 99th Percentile | B62: 5.577057383 | C62: - | D62: 6.589274051 | E62: 5.577057383 | F62: -
A63: 95th Percentile | B63: 3.625641868 | C63: - | D63: 4.925143417 | E63: 3.625641868 | F63: -
A64: 50th Percentile | B64: 1.113692956 | C64: - | D64: 2.308870535 | E64: 1.113692956 | F64: -
A65: 5th Percentile | B65: 0.4443288702 | C65: - | D65: 1.122206759 | E65: 0.4443288702 | F65: -
A66: Minimum | B66: 0.3854233144 | C66: - | D66: 0.6470387156 | E66: 0.3854233144 | F66: -
A67: Mean | B67: 1.404350739 | C67: - | D67: 2.568844908 | E67: 1.404350739 | F67: -

Sheet Scenario 1_Static
A1: What-If Scenario
A2: Production Volume Assessed (kg/yr) | B2: 2268
A3: Number of Sites | B3: 2
A5: Monte Carlo Simulation Parameters
A6: Number of Iterations | B6: 100000
A7: Sampling Method | B7: Latin Hypercube
B9: Release Media
A10: Total Annual Release (kg/site-yr) | B10: fugitive air or stack air | C10: hazardous landfill or incineration | E10: Release Days (days/yr) | F10: RD
A11: Maximum | B11: 3.072317902 | C11: 33.9990872 | E11: Maximum | F11: 13
A12: 99th Percentile | B12: 2.22673554 | C12: 33.10521087 | E12: Minimum | F12: 3
A13: 95th Percentile | B13: 1.964164566 | C13: 31.9749605
A14: 50th Percentile | B14: 1.215782028 | C14: 27.4549503
A15: 5th Percentile | B15: 0.8005208868 | C15: 21.86349711
A16: Minimum | B16: 0.6414540507 | C16: 19.3059405
A17: Mean | B17: 1.279544774 | C17: 27.21557488
A19: Total Release per-Day (kg/site-day)
A20: Maximum | B20: 0.7438047654 | C20: 11.31370887
A21: 99th Percentile | B21: 0.5325752383 | C21: 10.0973514
A22: 95th Percentile | B22: 0.4402888752 | C22: 8.241182771
A23: 50th Percentile | B23: 0.2414463329 | C23: 5.456515982
A24: 5th Percentile | B24: 0.1310024411 | C24: 3.058478913
A25: Minimum | B25: 0.06717399434 | C25: 1.510283916
A26: Mean | B26: 0.2579979141 | C26: 5.547148448
B29: Release Point
A30: Release Point | B30: 1. Emptying (drums) | C30: 2. Storage | D30: 3. Filling (small containers) | E30: 4. Open Surface Losses to Air During Container Cleaning | F30: 5. Container Cleaning (drums)
A31: Expected/Conservative Release Media | B31: fugitive air or stack air | C31: Not expected to lead to significant losses to the environment | D31: fugitive air or stack air | E31: fugitive air or stack air | F31: landfill or incineration
A33: Release (kg/site-yr) | B33: Release_YearRP1 | C33: - | D33: Release_YearRP3 | E33: Release_YearRP4 | F33: Release_YearRP5
A34: Maximum | B34: 2.213533628 | C34: - | D34: 1.345445429 | E34: 0.06215255784 | F34: 33.9990872
A35: 99th Percentile | B35: 1.829627525 | C35: - | D35: 0.5891043533 | E35: 0.0359476643 | F35: 33.10521087
A36: 95th Percentile | B36: 1.630964075 | C36: - | D36: 0.417372511 | E36: 0.02690280823 | F36: 31.9749605
A37: 50th Percentile | B37: 1.014721534 | C37: - | D37: 0.1708965804 | E37: 0.01303841351 | F37: 27.4549503
A38: 5th Percentile | B38: 0.6714128667 | C38: - | D38: 0.07400140837 | E38: 0.006144547874 | F38: 21.86349711
A39: Minimum | B39: 0.5875493283 | C39: - | D39: 0.03487564488 | E39: 0.002464325592 | F39: 19.3059405
A40: Mean | B40: 1.066850066 | C40: - | D40: 0.1983830182 | E40: 0.01431169019 | F40: 27.21557488
A42: Release (kg/site-day) | B42: Release_per DayRP1 | C42: - | D42: Release_per DayRP3 | E42: Release_per DayRP4 | F42: Release_per DayRP5
A43: Maximum | B43: 0.6304402411 | C43: - | D43: 0.1225407088 | E43: 0.004851463221 | F43: 11.31370887
A44: 99th Percentile | B44: 0.470943683 | C44: - | D44: 0.09000656211 | E44: 0.004726188606 | F44: 10.0973514
A45: 95th Percentile | B45: 0.3847757618 | C45: - | D45: 0.07118210065 | E45: 0.004337482568 | F45: 8.241182771
A46: 50th Percentile | B46: 0.2033434249 | C46: - | D46: 0.03373305605 | E46: 0.00260516601 | F46: 5.456515982
A47: 5th Percentile | B47: 0.1012508205 | C47: - | D47: 0.0163363501 | E47: 0.001377558242 | F47: 3.058478913
A48: Minimum | B48: 0.04927730999 | C48: - | D48: 0.01147508889 | E48: 0.0007778039009 | F48: 1.510283916
A49: Mean | B49: 0.217952144 | C49: - | D49: 0.03735130961 | E49: 0.002694460472 | F49: 5.547148448

Sheet Scenario 2_Static_OH
A1: What-If Scenario
A2: Production Volume Assessed (kg/yr) | B2: 22680
A3: Number of Sites | B3: 2
A5: Monte Carlo Simulation Parameters
A6: Number of Iterations | B6: 100000
A7: Sampling Method | B7: Latin Hypercube
B9: Release Media
A10: Total Annual Release (kg/site-yr) | B10: fugitive air or stack air | C10: hazardous landfill or incineration | E10: Release Days (days/yr) | F10: RD
A11: Maximum | B11: 29.40257608 | C11: 340.0643146 | E11: Maximum | F11: 128
A12: 99th Percentile | B12: 20.06560679 | C12: 331.0479111 | E12: Minimum | F12: 26
A13: 95th Percentile | B13: 17.78444072 | C13: 319.7509749
A14: 50th Percentile | B14: 11.06252881 | C14: 274.5493167
A15: 5th Percentile | B15: 7.344948245 | C15: 218.6355093
A16: Minimum | B16: 6.373274225 | C16: 192.9957291
A17: Mean | B17: 11.63928976 | C17: 272.1557423
A19: Total Release per-Day (kg/site-day)
A20: Maximum | B20: 0.7142405752 | C20: 12.50695175
A21: 99th Percentile | B21: 0.532609466 | C21: 10.54277198
A22: 95th Percentile | B22: 0.4411425273 | C22: 9.357422527
A23: 50th Percentile | B23: 0.2419891436 | C23: 5.996232914
A24: 5th Percentile | B24: 0.1303198336 | C24: 3.25851525
A25: Minimum | B25: 0.06602005257 | C25: 1.623234223
A26: Mean | B26: 0.2580304962 | C26: 6.115286741
B29: Release Point
A30: Release Point | B30: 1. Emptying (drums) | C30: 2. Storage | D30: 3. Filling (small containers) | E30: 4. Open Surface Losses to Air During Container Cleaning | F30: 5. Container Cleaning (drums)
A31: Expected/Conservative Release Media | B31: fugitive air or stack air | C31: Not expected to lead to significant losses to the environment | D31: fugitive air or stack air | E31: fugitive air or stack air | F31: landfill or incineration
A33: Release (kg/site-yr) | B33: Release_YearRP1 | C33: - | D33: Release_YearRP3 | E33: Release_YearRP4 | F33: Release_YearRP5
A34: Maximum | B34: 17.42883512 | C34: - | D34: 12.8892228 | E34: 0.5838070512 | F34: 340.0643146
A35: 99th Percentile | B35: 16.08384208 | C35: - | D35: 5.532441986 | E35: 0.3416756249 | F35: 331.0479111
A36: 95th Percentile | B36: 14.68659881 | C36: - | D36: 3.856008958 | E36: 0.251657567 | F36: 319.7509749
A37: 50th Percentile | B37: 9.235693523 | C37: - | D37: 1.553067442 | E37: 0.1181797445 | F37: 274.5493167
A38: 5th Percentile | B38: 6.219360709 | C38: - | D38: 0.6645696731 | E38: 0.05523557221 | F38: 218.6355093
A39: Minimum | B39: 5.869262637 | C39: - | D39: 0.3211827622 | E39: 0.02303553418 | F39: 192.9957291
A40: Mean | B40: 9.692013354 | C40: - | D40: 1.816230456 | E40: 0.1310459547 | F40: 272.1557423
A42: Release (kg/site-day) | B42: Release_per DayRP1 | C42: - | D42: Release_per DayRP3 | E42: Release_per DayRP4 | F42: Release_per DayRP5
A43: Maximum | B43: 0.6439168482 | C43: - | D43: 0.1264940837 | E43: 0.004851424629 | F43: 12.50695175
A44: 99th Percentile | B44: 0.4709914098 | C44: - | D44: 0.09011371938 | E44: 0.004726180437 | F44: 10.54277198
A45: 95th Percentile | B45: 0.3844533452 | C45: - | D45: 0.07148891402 | E45: 0.00433748299 | F45: 9.357422527
A46: 50th Percentile | B46: 0.2036496446 | C46: - | D46: 0.03372337033 | E46: 0.002605168546 | F46: 5.996232914
A47: 5th Percentile | B47: 0.1009310166 | C47: - | D47: 0.01626525503 | E47: 0.00137756962 | F47: 3.25851525
A48: Minimum | B48: 0.04895688758 | C48: - | D48: 0.01148635739 | E48: 0.0007769703173 | F48: 1.623234223
A49: Mean | B49: 0.2179589763 | C49: - | D49: 0.03737705932 | E49: 0.002694460612 | F49: 6.115286741
A51: Daily Release Duration (hours/day) | B51: Release_Duration per Day_RP1 | C51: - | D51: Release_Duration per Day_RP3 | E51: Release_Duration per Day_RP4 | F51: Release_Duration per Day_RP5
A52: Maximum | B52: 6.359208212 | C52: - | D52: 8.549149898 | E52: 6.359208212 | F52: -
A53: 99th Percentile | B53: 5.070320257 | C53: - | D53: 8.422602322 | E53: 5.070320257 | F53: -
A54: 95th Percentile | B54: 4.028548704 | C54: - | D54: 7.945627593 | E54: 4.028548704 | F54: -
A55: 50th Percentile | B55: 2.227382336 | C55: - | D55: 4.550657972 | E55: 2.227382336 | F55: -
A56: 5th Percentile | B56: 1.481100949 | C56: - | D56: 2.567954821 | E56: 1.481100949 | F56: -
A57: Minimum | B57: 1.283423767 | C57: - | D57: 2.141810269 | E57: 1.283423767 | F57: -
A58: Mean | B58: 2.405986805 | C58: - | D58: 4.835426479 | E58: 2.405986805 | F58: -
A60: Annual Release Duration (hours/yr) | B60: Release_Duration per Year_RP1 | C60: - | D60: Release_Duration per Year_RP3 | E60: Release_Duration per Year_RP4 | F60: Release_Duration per Year_RP5
A61: Maximum | B61: 813.9786511 | C61: - | D61: 1058.532502 | E61: 813.9786511 | F61: -
A62: 99th Percentile | B62: 517.1726662 | C62: - | D62: 624.2050414 | E62: 517.1726662 | F62: -
A63: 95th Percentile | B63: 326.312445 | C63: - | D63: 455.765292 | E63: 326.312445 | F63: -
A64: 50th Percentile | B64: 100.2322051 | C64: - | D64: 210.5343002 | E64: 100.2322051 | F64: -
A65: 5th Percentile | B65: 44.43302847 | C65: - | D65: 99.97354671 | E65: 44.43302847 | F65: -
A66: Minimum | B66: 33.36901794 | C66: - | D66: 60.09800569 | E66: 33.36901794 | F66: -
A67: Mean | B67: 129.6211385 | C67: - | D67: 235.1680532 | E67: 129.6211385 | F67: -

Sheet Scenario 2_Static
A1: What-If Scenario
A2: Production Volume Assessed (kg/yr) | B2: 22680
A3: Number of Sites | B3: 2
A5: Monte Carlo Simulation Parameters
A6: Number of Iterations | B6: 100000
A7: Sampling Method | B7: Latin Hypercube
B9: Release Media
A10: Total Annual Release (kg/site-yr) | B10: fugitive air or stack air | C10: hazardous landfill or incineration | E10: Release Days (days/yr) | F10: RD
A11: Maximum | B11: 27.92011819 | C11: 340.008706 | E11: Maximum | F11: 129
A12: 99th Percentile | B12: 20.12562482 | C12: 331.0482797 | E12: Minimum | F12: 26
A13: 95th Percentile | B13: 17.7903794 | C13: 319.7502892
A14: 50th Percentile | B14: 11.07406048 | C14: 274.5493104
A15: 5th Percentile | B15: 7.334170926 | C15: 218.6335492
A16: Minimum | B16: 6.325156286 | C16: 192.8671744
A17: Mean | B17: 11.64123576 | C17: 272.1557458
A19: Total Release per-Day (kg/site-day)
A20: Maximum | B20: 0.7500694477 | C20: 12.73041586
A21: 99th Percentile | B21: 0.5322559485 | C21: 10.52167441
A22: 95th Percentile | B22: 0.4392435691 | C22: 9.358019914
A23: 50th Percentile | B23: 0.2415740147 | C23: 5.9958922
A24: 5th Percentile | B24: 0.1305820901 | C24: 3.262761371
A25: Minimum | B25: 0.0632702252 | C25: 1.653054514
A26: Mean | B26: 0.2580090295 | C26: 6.115277705
B29: Release Point
A30: Release Point | B30: 1. Emptying (drums) | C30: 2. Storage | D30: 3. Filling (small containers) | E30: 4. Open Surface Losses to Air During Container Cleaning | F30: 5. Container Cleaning (drums)
A31: Expected/Conservative Release Media | B31: fugitive air or stack air | C31: Not expected to lead to significant losses to the environment | D31: fugitive air or stack air | E31: fugitive air or stack air | F31: landfill or incineration
A33: Release (kg/site-yr) | B33: Release_YearRP1 | C33: - | D33: Release_YearRP3 | E33: Release_YearRP4 | F33: Release_YearRP5
A34: Maximum | B34: 17.4001683 | C34: - | D34: 12.33480907 | E34: 0.579188379 | F34: 340.008706
A35: 99th Percentile | B35: 16.08747409 | C35: - | D35: 5.560535905 | E35: 0.3411338031 | F35: 331.0482797
A36: 95th Percentile | B36: 14.68118458 | C36: - | D36: 3.876986533 | E36: 0.2503365148 | F36: 319.7502892
A37: 50th Percentile | B37: 9.234584002 | C37: - | D37: 1.555378022 | E37: 0.1183821384 | F37: 274.5493104
A38: 5th Percentile | B38: 6.221748384 | C38: - | D38: 0.6634992206 | E38: 0.05516349064 | F38: 218.6335492
A39: Minimum | B39: 5.869144074 | C39: - | D39: 0.3263846063 | E39: 0.0234444182 | F39: 192.8671744
A40: Mean | B40: 9.691960564 | C40: - | D40: 1.818266232 | E40: 0.1310089678 | F40: 272.1557458
A42: Release (kg/site-day) | B42: Release_per DayRP1 | C42: - | D42: Release_per DayRP3 | E42: Release_per DayRP4 | F42: Release_per DayRP5
A43: Maximum | B43: 0.6394777236 | C43: - | D43: 0.122501324 | E43: 0.00485153305 | F43: 12.73041586
A44: 99th Percentile | B44: 0.4695866894 | C44: - | D44: 0.09009495835 | E44: 0.004726351353 | F44: 10.52167441
A45: 95th Percentile | B45: 0.3846187024 | C45: - | D45: 0.07144353286 | E45: 0.004337535682 | F45: 9.358019914
A46: 50th Percentile | B46: 0.2033954072 | C46: - | D46: 0.03371818721 | E46: 0.002605209847 | F46: 5.9958922
A47: 5th Percentile | B47: 0.1011615024 | C47: - | D47: 0.01629446765 | E47: 0.001377577374 | F47: 3.262761371
A48: Minimum | B48: 0.04805245891 | C48: - | D48: 0.01149624656 | E48: 0.0007765776583 | F48: 1.653054514
A49: Mean | B49: 0.2179186132 | C49: - | D49: 0.03739592031 | E49: 0.002694496018 | F49: 6.115277705
